bitfinex/quotes_SOLUSD_20250217
["timestamp","ask_amount","ask_price","bid_price","bid_amount"]
[1739828109122,23.75628688,180.73,180.71,0.063]
[1739828109322,18.22308688,180.73,180.71,0.063]
[1739828109725,18.22308688,180.72,180.71,0.063]
[1739828110337,24.66888688,180.74,180.71,0.063]
[1739828111026,18.22308688,180.72,180.71,0.063]
[1739828111634,18.22308688,180.73,180.71,0.063]
[1739828112628,24.66888688,180.74,180.71,0.063]
[1739828113130,18.22308688,180.73,180.71,0.063]
[1739828113340,24.66888688,180.74,180.71,0.063]
[1739828114423,18.22308688,180.74,180.71,0.063]
[1739828115766,18.22308688,180.75,180.71,0.063]
[1739828115937,18.25308688,180.77,180.71,0.063]
[1739828116267,18.25308688,180.77,180.71,18.28608688]
[1739828116554,18.22308688,180.74,180.71,0.063]
[1739828116737,18.22308688,180.72,180.71,0.063]
[1739828116938,5.5619,180.77,180.71,0.063]
[1739828117145,18.22308688,180.73,180.71,0.063]
[1739828117451,18.22308688,180.74,180.71,0.063]
[1739828118159,18.22308688,180.75,180.71,0.063]
[1739828118356,18.22308688,180.76,180.71,0.063]
[1739828118550,18.25308688,180.77,180.71,0.063]
[1739828118869,18.25308688,180.77,180.71,18.28608688]
[1739828120345,0.03,180.77,180.72,23.75648688]
[1739828120545,0.03,180.77,180.73,18.22308688]
[1739828122147,0.03,180.77,180.72,23.75648688]
[1739828122344,18.25308688,180.77,180.72,5.5334]
[1739828122760,18.22308688,180.76,180.72,5.5334]
[1739828122979,18.25308688,180.77,180.72,5.5334]
[1739828123467,18.22308688,180.76,180.72,5.5334]
[1739828124277,18.22308688,180.76,180.71,5.5967]
[1739828126770,18.22308688,180.75,180.71,5.5967]
[1739828127273,18.22308688,180.74,180.71,0.063]
[1739828127675,18.22308688,180.73,180.71,0.063]
[1739828128673,18.22308688,180.74,180.71,0.063]
[1739828129880,18.22308688,180.72,180.71,0.063]
[1739828130086,18.22308688,180.74,180.71,0.063]
[1739828130755,18.22308688,180.73,180.71,0.063]
[1739828130955,18.22308688,180.74,180.71,0.063]
[1739828131976,18.22308688,180.73,180.71,0.063]
[1739828132474,18.22308688,180.72,180.71,0.063]
[1739828132674,11.66248574,180.72,180.71,0.063]
[1739828133993,17.19588574,180.72,180.71,0.063]
[1739828135177,83.45657723,180.72,180.71,0.063]
[1739828135975,20.0,180.69,180.66,0.063]
[1739828136297,11.66248574,180.67,180.66,0.063]
[1739828136682,18.23850387,180.67,180.66,0.063]
[1739828139098,23.77340387,180.67,180.66,0.063]
[1739828142383,37.1852524,180.67,180.66,0.063]
[1739828142780,39.42036848,180.67,180.66,0.063]
[1739828143107,37.1852524,180.67,180.66,0.063]
[1739828151728,20.0,180.62,180.6,0.03]
[1739828151923,18.23850387,180.61,180.6,0.03]
[1739828152124,23.77520387,180.61,180.6,0.03]
[1739828152720,18.23850387,180.61,180.6,0.03]
[1739828152928,38.23850387,180.62,180.6,0.03]
[1739828153428,38.23850387,180.63,180.6,0.03]
[1739828153643,18.23850387,180.64,180.6,0.03]
[1739828153930,20.0,180.64,180.58,18.23850387]
[1739828154111,18.23850387,180.63,180.57,18.23850387]
[1739828154614,38.23850387,180.64,180.58,18.23850387]
[1739828155023,38.23850387,180.64,180.59,5.5374]
[1739828155527,38.23850387,180.64,180.6,0.03]
[1739828156636,31.67378369,180.64,180.6,0.03]
[1739828156814,11.67378369,180.63,180.6,0.03]
[1739828157013,11.67378369,180.62,180.6,0.03]
[1739828157222,11.67378369,180.61,180.6,0.03]
[1739828161433,11.67378369,180.62,180.6,0.03]
[1739828162742,11.67378369,180.63,180.6,0.03]
[1739828163619,11.67378369,180.62,180.6,0.03]
[1739828163924,11.67378369,180.61,180.6,0.03]
[1739828164533,17.21048369,180.61,180.6,0.03]
[1739828164740,30.62233222,180.61,180.6,0.03]
[1739828164922,20.0,180.57,180.53,0.03]
[1739828165121,11.67378369,180.55,180.53,0.03]
[1739828165622,20.0,180.57,180.53,0.03]
[1739828165824,20.0,180.58,180.53,17.24278369]
[1739828166120,17.97378369,180.61,180.55,11.67378369]
[1739828166331,11.67378369,180.62,180.56,11.67378369]
[1739828166525,5.5359,180.64,180.58,17.21148369]
[1739828166526,11.67378369,180.64,180.58,17.21148369]
[1739828166955,11.67378369,180.65,180.59,11.70378369]
[1739828167427,0.063,180.61,180.59,0.03]
[1739828167627,0.063,180.61,180.59,11.70378369]
[1739828167826,0.063,180.61,180.59,0.03]
[1739828168030,11.67378369,180.6,180.59,0.03]
[1739828168736,18.24977416,180.6,180.59,0.03]
[1739828169248,0.063,180.61,180.59,0.03]
[1739828169727,0.063,180.61,180.59,18.27977416]
[1739828170441,0.063,180.61,180.6,19.89327416]
[1739828170753,18.31277416,180.71,180.61,19.3786]
[1739828170924,0.063,180.71,180.66,18.24977416]
[1739828171468,18.31277416,180.71,180.65,18.24977416]
[1739828171627,18.24977416,180.7,180.63,18.24977416]
[1739828172736,18.24977416,180.7,180.63,23.78577416]
[1739828172944,18.24977416,180.69,180.63,23.78577416]
[1739828173936,18.24977416,180.7,180.63,23.78577416]
[1739828174151,18.24977416,180.69,180.63,23.78577416]
[1739828177058,18.24977416,180.7,180.64,18.24977416]
[1739828177755,18.24977416,180.7,180.64,5.5358]
[1739828177955,18.24977416,180.69,180.64,5.5358]
[1739828178164,18.24977416,180.7,180.64,5.5358]
[1739828178951,18.24977416,180.7,180.64,23.78557416]
[1739828179351,18.24977416,180.7,180.63,18.24977416]
[1739828180560,0.063,180.69,180.64,5.5358]
[1739828181141,18.31277416,180.69,180.64,5.5358]
[1739828182242,0.063,180.69,180.64,5.5358]
[1739828182667,0.063,180.69,180.67,18.24977416]
[1739828184565,0.063,180.69,180.68,18.24977416]
[1739828184963,0.063,180.69,180.67,18.24977416]
[1739828185338,0.063,180.69,180.68,18.24977416]
[1739828185540,0.063,180.69,180.68,20.73569227]
[1739828186465,0.063,180.69,180.68,19.90567416]
[1739828186664,0.063,180.69,180.68,25.44027416]
[1739828186966,0.063,180.69,180.68,1.6559]
[1739828187966,0.063,180.69,180.64,23.78557416]
[1739828188456,0.063,180.69,180.65,18.24977416]
[1739828189143,0.063,180.69,180.65,23.78517416]
[1739828189579,0.063,180.69,180.66,18.24977416]
[1739828190747,0.063,180.69,180.67,23.78467416]
[1739828190942,0.063,180.69,180.68,18.24977416]
[1739828192468,0.063,180.69,180.68,31.66162269]
[1739828192667,0.0001,180.69,180.68,31.66162269]
[1739828192868,0.0001,180.69,180.68,37.19622269]
[1739828194465,0.0001,180.69,180.68,38.82332269]
[1739828199854,0.0001,180.69,180.68,25.41147416]
[1739828202167,0.0001,180.69,180.68,26.24140932]
[1739828202671,0.0001,180.69,180.68,5.5346]
[1739828202878,0.0001,180.69,180.65,11.65724408]
[1739828203070,0.0001,180.69,180.66,11.65724408]
[1739828203268,0.0001,180.69,180.68,11.65724408]
[1739828203764,0.0001,180.69,180.68,17.19184408]
[1739828204157,0.0001,180.69,180.68,11.65724408]
[1739828204358,0.0001,180.69,180.67,17.19214408]
[1739828204873,0.0001,180.69,180.65,17.19274408]
[1739828205176,0.0001,180.69,180.64,11.65724408]
[1739828205576,11.65724408,180.68,180.62,11.65724408]
[1739828205778,11.65724408,180.68,180.66,0.03]
[1739828206276,5.5346,180.69,180.66,0.03]
[1739828206277,11.65734408,180.69,180.66,0.03]
[1739828206654,0.0001,180.69,180.66,0.03]
[1739828207479,18.22932531,180.68,180.66,0.03]
[1739828207676,18.22942531,180.69,180.66,0.03]
[1739828210773,17.72942531,180.69,180.66,0.03]
[1739828212684,18.22932531,180.7,180.66,0.03]
[1739828213195,18.29232531,180.71,180.66,0.03]
[1739828213667,23.82602531,180.71,180.66,0.03]
[1739828213981,18.29232531,180.71,180.66,0.03]
[1739828214187,18.22932531,180.7,180.66,0.03]
[1739828214881,18.22932531,180.69,180.66,0.03]
[1739828215265,18.22932531,180.68,180.66,0.03]
[1739828215780,0.063,180.71,180.66,18.25932531]
[1739828215994,0.063,180.71,180.68,18.22932531]
[1739828216281,0.063,180.71,180.7,18.22932531]
[1739828216485,0.063,180.71,180.69,18.22932531]
[1739828217069,0.063,180.71,180.7,18.22932531]
[1739828217477,0.063,180.71,180.69,18.22932531]
[1739828217769,0.063,180.71,180.7,18.22932531]
[1739828219082,0.063,180.71,180.7,23.76332531]
[1739828220386,0.063,180.71,180.7,18.22932531]
[1739828220591,0.063,180.71,180.67,18.22932531]
[1739828220786,0.063,180.71,180.68,18.22932531]
[1739828220967,0.063,180.71,180.7,23.76332531]
[1739828221366,0.063,180.74,180.7,38.59832531]
[1739828221562,0.063,180.74,180.73,18.22932531]
[1739828221784,0.063,180.74,180.73,20.60584605]
[1739828222376,0.0001,180.74,180.73,35.01769458]
[1739828222581,0.063,180.8,180.75,1.0]
[1739828222885,0.063,180.8,180.79,18.22932531]
[1739828224585,0.063,180.8,180.77,18.22932531]
[1739828224901,18.29232531,180.8,180.74,18.22932531]
[1739828225282,0.063,180.8,180.75,18.22932531]
[1739828225503,0.063,180.8,180.76,18.22932531]
[1739828225703,0.063,180.8,180.75,18.22932531]
[1739828225886,0.063,180.8,180.71,18.22932531]
[1739828225887,18.22932531,180.77,180.71,18.22932531]
[1739828226307,18.22932531,180.76,180.7,18.22932531]
[1739828226511,18.22932531,180.74,180.68,18.22932531]
[1739828226689,6.4537,180.77,180.67,18.22932531]
[1739828226690,18.22932531,180.73,180.67,18.22932531]
[1739828226888,18.22932531,180.7,180.66,0.03]
[1739828227804,23.76332531,180.7,180.66,0.03]
[1739828227999,18.22932531,180.71,180.66,0.03]
[1739828228406,18.22932531,180.72,180.66,18.25932531]
[1739828228708,18.22932531,180.71,180.66,18.25932531]
[1739828228882,18.22932531,180.71,180.66,0.03]
[1739828229701,18.22932531,180.7,180.66,0.03]
[1739828229908,18.22932531,180.68,180.66,0.03]
[1739828230083,18.22932531,180.67,180.66,0.03]
[1739828230809,31.64117384,180.67,180.66,0.03]
[1739828231811,37.17607384,180.67,180.66,0.03]
[1739828232809,31.64117384,180.67,180.66,0.03]
[1739828233107,37.17607384,180.67,180.66,0.03]
[1739828233713,38.17607384,180.67,180.66,0.03]
[1739828238803,2.6232,180.65,180.64,0.03]
[1739828238999,39.08185062,180.65,180.64,0.03]
[1739828240295,33.26437384,180.65,180.64,0.03]
[1739828241819,38.79987384,180.65,180.64,0.03]
[1739828243303,37.17667384,180.65,180.64,0.03]
[1739828243933,18.22932531,180.65,180.64,0.03]
[1739828244999,23.76482531,180.65,180.64,0.03]
[1739828245422,18.22932531,180.65,180.64,0.03]
[1739828246530,23.76482531,180.65,180.64,0.03]
[1739828246734,37.17667384,180.65,180.64,0.03]
[1739828248933,36.67667384,180.65,180.64,0.03]
[1739828259122,37.67667384,180.65,180.64,0.03]
[1739828259822,53.31667384,180.65,180.64,0.03]
[1739828260000,37.67667384,180.65,180.64,0.03]
[1739828261634,37.67667384,180.65,180.64,0.0001]
[1739828262539,20.0,180.62,180.61,0.03]
[1739828262841,38.22932531,180.62,180.61,0.03]
[1739828263246,51.64117384,180.62,180.61,0.03]
[1739828264435,57.17757384,180.62,180.61,0.03]
[1739828265036,14.41184853,180.61,180.59,0.03]
[1739828265337,13.41184853,180.57,180.53,0.03]
[1739828265541,18.22932531,180.55,180.53,0.03]
[1739828266436,18.22932531,180.54,180.53,0.03]
[1739828266929,18.22932531,180.55,180.53,0.03]
[1739828268729,18.22932531,180.54,180.53,0.03]
[1739828270016,18.22932531,180.57,180.53,0.03]
[1739828270250,20.0,180.58,180.53,18.25932531]
[1739828270538,6.3,180.59,180.54,23.76822531]
[1739828270719,38.22932531,180.61,180.55,18.22932531]
[1739828272340,38.22932531,180.61,180.56,5.5383]
[1739828273721,18.22932531,180.59,180.54,5.5386]
[1739828273927,18.22932531,180.58,180.54,5.5386]
[1739828274236,18.22932531,180.58,180.53,18.25932531]
[1739828274538,38.22932531,180.6,180.54,18.22932531]
[1739828274833,20.0,180.6,180.55,18.22932531]
[1739828275146,20.0,180.6,180.53,5.5692]
[1739828275147,36.72932531,180.6,180.54,18.22932531]
[1739828275534,18.22932531,180.59,180.53,23.79852531]
[1739828275722,18.22932531,180.57,180.53,0.03]
[1739828275921,18.22932531,180.59,180.53,18.25932531]
[1739828276139,18.22932531,180.6,180.54,18.22932531]
[1739828276345,18.22932531,180.6,180.54,23.76792531]
[1739828277119,20.0,180.59,180.54,23.76792531]
[1739828277320,38.22932531,180.59,180.54,5.5386]
[1739828278250,20.0,180.59,180.54,23.76792531]
[1739828278749,20.0,180.59,180.54,17.2169705]
[1739828281844,0.063,180.6,180.56,11.6783705]
[1739828283255,0.063,180.6,180.57,5.538]
[1739828286354,0.063,180.6,180.59,13.3234705]
[1739828286940,0.063,180.6,180.59,1.6451]
[1739828288358,0.063,180.6,180.59,18.8608705]
[1739828288657,0.03,180.65,180.59,18.8608705]
[1739828288835,0.03,180.65,180.64,11.6783705]
[1739828290258,0.03,180.65,180.64,17.2141705]
[1739828290836,0.03,180.65,180.64,11.6783705]
[1739828291038,0.03,180.65,180.62,11.6783705]
[1739828291241,11.7083705,180.65,180.59,13.3234705]
[1739828291446,11.6783705,180.64,180.59,1.6451]
[1739828292757,18.23940817,180.64,180.59,1.6451]
[1739828292941,18.23940817,180.63,180.59,1.6451]
[1739828293146,18.23940817,180.63,180.57,18.23940817]
[1739828293338,18.23940817,180.6,180.55,1.5318]
[1739828294559,18.23940817,180.63,180.57,18.23940817]
[1739828294971,0.03,180.65,180.55,7.0704]
[1739828294972,18.23940817,180.64,180.58,18.23940817]
[1739828295840,18.26940817,180.65,180.59,18.23940817]
[1739828296261,0.03,180.65,180.6,18.23940817]
[1739828296444,0.03,180.65,180.6,23.77630817]
[1739828296640,0.03,180.65,180.61,18.23940817]
[1739828296862,0.03,180.65,180.62,18.23940817]
[1739828297465,0.03,180.65,180.64,18.23940817]
[1739828297962,0.03,180.65,180.64,19.74390817]
[1739828298549,0.03,180.65,180.64,25.27970817]
[1739828299942,18.23940817,180.75,180.64,39.94945121]
[1739828300172,18.23940817,180.76,180.7,18.23940817]
[1739828301278,18.23940817,180.74,180.67,18.23940817]
[1739828301576,18.23940817,180.75,180.69,18.23940817]
[1739828302253,18.26940817,180.77,180.71,18.23940817]
[1739828304074,18.26940817,180.77,180.71,23.77300817]
[1739828304952,23.80120817,180.77,180.71,18.23940817]
[1739828305152,18.26940817,180.77,180.71,23.77300817]
[1739828305873,18.26940817,180.77,180.71,5.5336]
[1739828306073,18.23940817,180.76,180.7,18.23940817]
[1739828307684,18.23940817,180.75,180.69,18.23940817]
[1739828307976,18.23940817,180.76,180.7,18.23940817]
[1739828308156,18.26940817,180.77,180.71,18.23940817]
[1739828308674,18.23940817,180.76,180.7,18.23940817]
[1739828309384,18.23940817,180.76,180.69,18.23940817]
[1739828309554,18.23940817,180.75,180.69,18.23940817]
[1739828309754,23.77190817,180.75,180.69,18.23940817]
[1739828310073,18.23940817,180.74,180.68,23.77380817]
[1739828310274,18.23940817,180.73,180.64,1.5045]
[1739828310588,18.23940817,180.72,180.65,18.23940817]
[1739828310747,18.23940817,180.71,180.65,18.23940817]
[1739828311670,23.77310817,180.71,180.65,18.23940817]
[1739828312449,18.23940817,180.7,180.64,25.27970817]
[1739828313159,23.77310817,180.71,180.64,25.27970817]
[1739828313543,23.77310817,180.71,180.65,18.23940817]
[1739828313747,23.77310817,180.71,180.64,7.0403]
[1739828313748,23.77310817,180.71,180.64,19.74390817]
[1739828314700,23.77310817,180.71,180.67,0.063]
[1739828314875,5.5337,180.71,180.67,0.063]
[1739828315077,18.23940817,180.7,180.67,0.063]
[1739828316393,23.77360817,180.7,180.67,0.063]
[1739828316770,18.23940817,180.72,180.67,0.063]
[1739828317766,23.77290817,180.72,180.67,0.063]
[1739828320008,18.23940817,180.71,180.67,0.063]
[1739828320673,23.77290817,180.72,180.67,0.063]
[1739828321197,5.5335,180.72,180.67,0.063]
[1739828321370,23.77290817,180.72,180.67,0.063]
[1739828321564,18.23940817,180.71,180.67,0.063]
[1739828322602,11.664578,180.71,180.67,0.063]
[1739828323665,13.41184853,180.74,180.67,0.063]
[1739828323871,17.197678,180.73,180.67,0.063]
[1739828324477,11.664578,180.72,180.67,0.063]
[1739828324807,17.197978,180.72,180.67,0.063]
[1739828325177,11.664578,180.71,180.67,0.063]
[1739828325671,11.664578,180.7,180.67,0.063]
[1739828326084,11.664578,180.69,180.67,0.063]
[1739828326676,11.664578,180.7,180.67,0.063]
[1739828326873,17.198578,180.7,180.67,0.063]
[1739828327078,11.664578,180.72,180.67,0.063]
[1739828328301,30.60922653,180.74,180.67,11.727578]
[1739828329095,0.03,180.75,180.7,11.664578]
[1739828329268,0.03,180.75,180.72,11.664578]
[1739828329470,0.03,180.75,180.74,11.664578]
[1739828329882,0.03,180.75,180.72,11.664578]
[1739828330269,0.03,180.75,180.71,13.298578]
[1739828330988,0.03,180.75,180.71,18.832178]
[1739828331384,0.03,180.75,180.71,13.298578]
[1739828332094,0.03,180.75,180.71,18.832178]
[1739828332300,0.03,180.75,180.71,13.298578]
[1739828332723,0.03,180.75,180.7,17.198478]
[1739828333490,0.03,180.75,180.73,11.664578]
[1739828334999,0.03,180.75,180.74,5.5328]
[1739828335221,0.03,180.75,180.74,17.197378]
[1739828338207,0.03,180.75,180.7,81.6]
[1739828338402,11.664578,180.74,180.7,81.6]
[1739828338809,11.664578,180.73,180.68,1.5243]
[1739828339289,11.664578,180.74,180.68,13.188878]
[1739828340191,11.664578,180.73,180.68,1.5243]
[1739828340500,11.664578,180.73,180.67,11.727578]
[1739828340705,18.22301369,180.7,180.67,0.063]
[1739828342611,18.22301369,180.68,180.67,0.063]
[1739828343195,18.22301369,180.71,180.67,0.063]
[1739828343495,23.75671369,180.71,180.67,0.063]
[1739828343707,18.22301369,180.68,180.67,0.063]
[1739828344501,23.75761369,180.68,180.67,0.063]
[1739828344920,18.22301369,180.68,180.67,0.063]
[1739828345093,23.75731369,180.69,180.67,0.063]
[1739828347321,18.22301369,180.69,180.67,0.063]
[1739828347528,18.22301369,180.71,180.67,0.063]
[1739828348407,23.75671369,180.71,180.67,0.063]
[1739828348803,18.22301369,180.71,180.67,0.063]
[1739828350002,5.5334,180.72,180.67,0.063]
[1739828350003,23.75641369,180.72,180.67,0.063]
[1739828350907,18.22301369,180.71,180.67,0.063]
[1739828351233,23.75671369,180.71,180.67,0.063]
[1739828351521,18.22301369,180.69,180.67,0.063]
[1739828352791,23.75751369,180.69,180.67,0.063]
[1739828359732,18.22301369,180.69,180.67,0.063]
[1739828360240,23.75711369,180.7,180.67,0.063]
[1739828360529,18.22301369,180.72,180.67,0.063]
[1739828360833,11.6636611,180.72,180.67,0.063]
[1739828362209,93.7936611,180.73,180.67,0.063]
[1739828362417,11.6936611,180.73,180.67,11.7266611]
[1739828362608,17.2267611,180.73,180.67,0.063]
[1739828362814,11.6636611,180.72,180.67,0.063]
[1739828363831,17.1971611,180.72,180.67,0.063]
[1739828364007,11.6636611,180.68,180.67,0.063]
[1739828366028,17.1982611,180.68,180.67,0.063]
[1739828367058,30.61010963,180.68,180.67,0.063]
[1739828372561,20.0,180.64,180.55,18.7753611]
[1739828372715,11.6636611,180.62,180.56,11.6636611]
[1739828373049,11.6636611,180.62,180.55,7.1117]
[1739828373359,11.6636611,180.61,180.55,18.7753611]
[1739828373854,11.6636611,180.6,180.55,1.5733]
[1739828374055,11.6636611,180.59,180.55,1.5733]
[1739828374556,11.6636611,180.6,180.55,7.1118]
[1739828376627,11.6636611,180.58,180.53,0.03]
[1739828377142,11.6636611,180.59,180.53,17.2328611]
[1739828377529,11.6636611,180.59,180.53,11.6936611]
[1739828377737,11.6636611,180.59,180.53,17.2328611]
[1739828379624,17.2010611,180.59,180.53,17.2328611]
[1739828379921,11.6636611,180.58,180.53,0.03]
[1739828380344,11.6636611,180.58,180.53,5.5691]
[1739828380944,17.2013611,180.58,180.53,0.03]
[1739828381946,11.6636611,180.58,180.53,0.03]
[1739828383746,11.6636611,180.57,180.53,0.03]
[1739828384245,11.6636611,180.58,180.53,0.03]
[1739828387551,11.6636611,180.56,180.53,0.03]
[1739828392746,17.2020611,180.56,180.53,0.03]
[1739828393046,11.6636611,180.56,180.53,0.03]
[1739828399550,11.6636611,180.58,180.53,0.03]
[1739828399949,11.6636611,180.57,180.53,0.03]
[1739828400147,11.6636611,180.56,180.53,0.03]
[1739828401449,11.6636611,180.57,180.53,0.03]
[1739828402048,11.6636611,180.56,180.53,0.03]
[1739828403983,11.6636611,180.55,180.53,0.03]
[1739828405073,11.6636611,180.54,180.53,0.03]
[1739828406072,25.07550963,180.54,180.53,0.03]
[1739828407394,30.61440963,180.54,180.53,0.03]
[1739828408572,25.07550963,180.54,180.53,0.03]
[1739828409174,30.61440963,180.54,180.53,0.03]
[1739828410490,77.26905403,180.54,180.53,0.03]
[1739828415797,78.26905403,180.54,180.53,0.03]
[1739828419090,85.53327183,180.54,180.53,0.03]
[1739828419389,85.53327183,180.54,180.48,0.063]
[1739828419390,33.41184853,180.5,180.48,0.063]
[1739828419602,25.07550963,180.49,180.48,0.063]
[1739828421370,30.61590963,180.49,180.48,0.063]
[1739828424200,19.87084853,180.48,180.47,0.063]
[1739828424384,33.41184853,180.46,180.41,0.03]
[1739828424696,25.07550963,180.43,180.41,0.03]
[1739828424900,11.6636611,180.43,180.41,0.03]
[1739828425672,11.6636611,180.45,180.41,0.03]
[1739828426629,11.6636611,180.48,180.43,1.5695]
[1739828426941,11.6636611,180.5,180.44,11.6636611]
[1739828427628,11.6636611,180.5,180.45,5.5417]
[1739828427810,11.6636611,180.49,180.45,5.5417]
[1739828428123,11.6636611,180.48,180.45,5.5417]
[1739828428326,11.6636611,180.47,180.43,7.1115]
[1739828428701,11.6636611,180.48,180.43,18.7751611]
[1739828428902,20.0,180.5,180.45,11.6636611]
[1739828429213,11.6636611,180.52,180.47,11.6636611]
[1739828429394,11.6636611,180.54,180.48,11.6636611]
[1739828429800,11.6636611,180.52,180.47,11.6636611]
[1739828430030,11.6636611,180.52,180.46,11.6636611]
[1739828430359,11.6636611,180.48,180.43,7.1115]
[1739828430498,11.6636611,180.49,180.43,18.7751611]
[1739828430838,11.6636611,180.47,180.43,1.5695]
[1739828431134,11.6636611,180.46,180.43,1.5695]
[1739828431430,11.6636611,180.44,180.43,1.5695]
[1739828431633,11.6636611,180.44,180.42,0.03]
[1739828431837,11.6636611,180.45,180.42,0.03]
[1739828434315,11.6636611,180.45,180.43,0.03]
[1739828435440,11.6636611,180.44,180.43,0.03]
[1739828435629,11.6636611,180.45,180.43,0.03]
[1739828440228,5.5414,180.46,180.43,0.03]
[1739828440628,11.6636611,180.45,180.43,0.03]
[1739828440823,5.5414,180.46,180.43,0.03]
[1739828440824,11.6636611,180.46,180.43,0.03]
[1739828441745,31.6636611,180.46,180.43,0.03]
[1739828442059,37.2050611,180.46,180.43,0.03]
[1739828442838,31.6636611,180.46,180.43,0.03]
[1739828443031,37.2050611,180.46,180.43,0.03]
[1739828443833,31.6636611,180.46,180.43,0.03]
[1739828444020,11.7266611,180.48,180.43,0.03]
[1739828445019,11.6636611,180.47,180.43,0.03]
[1739828446327,17.2047611,180.47,180.43,0.03]
[1739828447850,11.6636611,180.46,180.43,0.03]
[1739828448438,5.5411,180.47,180.43,0.03]
[1739828448439,17.2047611,180.47,180.43,0.03]
[1739828448748,11.6636611,180.46,180.43,0.03]
[1739828449849,17.2050611,180.46,180.43,0.03]
[1739828450060,5.5414,180.46,180.43,0.03]
[1739828450930,17.2050611,180.46,180.43,0.03]
[1739828453654,11.6636611,180.46,180.43,0.03]
[1739828453946,17.2046611,180.47,180.43,0.03]
[1739828454151,0.063,180.48,180.43,0.03]
[1739828454528,11.6636611,180.47,180.43,0.03]
[1739828456352,17.2047611,180.47,180.43,0.03]
[1739828457652,17.2677611,180.47,180.43,0.03]
[1739828460463,0.063,180.47,180.43,0.03]
[1739828461055,17.2677611,180.47,180.43,0.03]
[1739828461246,11.7266611,180.47,180.43,0.03]
[1739828461555,0.063,180.47,180.43,0.03]
[1739828463466,0.063,180.47,180.45,11.6636611]
[1739828463760,0.063,180.47,180.44,11.6636611]
[1739828463944,0.063,180.47,180.43,11.6936611]
[1739828464552,0.063,180.47,180.45,11.6636611]
[1739828464950,0.063,180.47,180.46,11.6636611]
[1739828465261,0.063,180.47,180.46,13.2667611]
[1739828466167,0.063,180.47,180.46,1.6031]
[1739828466468,0.063,180.47,180.43,11.6936611]
[1739828466649,0.063,180.47,180.43,17.2357611]
[1739828468271,0.063,180.47,180.44,11.6636611]
[1739828468565,0.063,180.47,180.45,17.2052611]
[1739828468952,0.063,180.47,180.45,11.6636611]
[1739828469878,0.063,180.47,180.46,11.6636611]
[1739828470665,0.063,180.47,180.46,17.2049611]
[1739828471851,0.063,180.47,180.45,11.6636611]
[1739828472053,0.063,180.47,180.43,11.6936611]
[1739828472559,0.063,180.47,180.43,17.2358611]
[1739828472773,0.063,180.47,180.44,11.6636611]
[1739828473275,0.063,180.47,180.46,11.6636611]
[1739828473666,0.063,180.47,180.46,17.2049611]
[1739828497505,0.063,180.47,180.44,0.03]
[1739828497868,11.7266611,180.47,180.44,0.03]
[1739828498398,11.6636611,180.46,180.44,0.03]
[1739828500272,0.063,180.47,180.44,0.03]
[1739828504997,0.063,180.47,180.45,11.6636611]
[1739828505310,0.063,180.47,180.46,11.6636611]
[1739828507213,0.063,180.47,180.46,17.2049611]
[1739828509310,0.063,180.47,180.46,5.5413]
[1739828510785,0.063,180.47,180.45,17.2052611]
[1739828511015,0.063,180.47,180.44,0.03]
[1739828511383,11.7266611,180.47,180.44,0.03]
[1739828511582,11.6636611,180.46,180.44,0.03]
[1739828512615,11.6636611,180.45,180.44,0.03]
[1739828515697,11.6636611,180.46,180.44,0.03]
[1739828516525,12.2378,180.47,180.44,0.03]
[1739828516526,11.6636611,180.45,180.44,0.03]
[1739828517316,30.61720963,180.45,180.44,0.03]
[1739828522509,78.84535403,180.45,180.44,0.0001]
[1739828522709,20.0,180.42,180.41,0.03]
[1739828522914,31.6636611,180.42,180.41,0.03]